Workbook

Sheet паспорт
A1: ПАТ "УКРТРАНСГАЗ" | G1: ПАСПОРТ ФІЗИКО-ХІМІЧНИХ ПОКАЗНИКІВ ПРИРОДНОГО ГАЗУ №92
A2: Філія "УМГ "Київтрансгаз" | G2: переданогоДиканським ЛВУМГ та прийнятого ПАТ "Полтавагаз"
A3: Диканський п/м Диканське ЛВУМГ | G3: Маршрут №92
A4: Вимірювальна хіміко-аналітична лабораторія
A5: Свідоцтво № 186-13 чинне до 05.12.2018 р. | K5: по газопроводу "ШЕБЕЛІНКА - ПОЛТАВА - КИЇВ" | V5: за період з | X5: 2017-05-01 | Z5: по | AA5: 31.05.2017р.
A7: Число місяця | B7: Компонентний склад, % мол. | N7: Фізико-хімічні показники газу обчислені на основі компонентного складу, 101,325 кПа | X7: Температура точки роси за вологою (Р = 3.92 МПа), °С | Y7: Температура точки роси за вуглеводнями, °С | Z7: Вміст сірководню, г/м3 | AA7: Вміст меркаптанової сірки, г/м3 | AB7: Вміст механічних домішок, г/м3
N8: Густина абсолютна, кг/м3,при 20 ºС, | O8: Температура вимірювання/згоряння при 20/25°С
B9: метан, С1 | C9: етан, С2 | D9: пропан, С3 | E9: ізо-бутан, і-С4 | F9: н-бутан, н-С4 | G9: нео-пентан, нео-С5 | H9: ізо-пентан, і-С5 | I9: н-пентан, н-С5 | J9: гексани та вищі, С6+ | K9: кисень, О2 | L9: азот, N2 | M9: діоксид вуглецю, CО2 | O9: Теплота згоряння нижча | R9: Теплота згоряння вища | U9: Число Воббе вище
O10: ккал/м3 | P10: МДж/м3 | Q10: кВт⋅год/м3 | R10: ккал/м3 | S10: МДж/м3 | T10: кВт⋅год/м3 | U10: ккал/м3 | V10: МДж/м3 | W10: кВт⋅год/м3
A11: 1 | O11: 8265.775018 | P11: 34.6088 | Q11: =P11/3.6 -> 9.613555556 | R11: 9156.197755 | S11: 38.337 | T11: =S11/3.6 -> 10.64916667 | AC11: =SUM(B11:M11)+$K$42+$N$42 -> 0
A12: 2 | O12: 8265.775018 | P12: 34.6088 | Q12: =P12/3.6 -> 9.613555556 | R12: 9156.197755 | S12: 38.337 | T12: =S12/3.6 -> 10.64916667 | AC12: 0
A13: 3 | O13: 8265.775018 | P13: 34.6088 | Q13: 9.613555556 | R13: 9156.197755 | S13: 38.337 | T13: 10.64916667 | AC13: 0 | AD13: =IF(AC13=100,"ОК"," ") -> 
A14: 4 | O14: 8265.775018 | P14: 34.6088 | Q14: 9.613555556 | R14: 9156.197755 | S14: 38.337 | T14: 10.64916667 | AC14: 0 | AD14: =IF(AC14=100,"ОК"," ") -> 
A15: 5 | O15: 8265.775018 | P15: 34.6088 | Q15: 9.613555556 | R15: 9156.197755 | S15: 38.337 | T15: 10.64916667 | AC15: 0
A16: 6 | O16: 8265.775018 | P16: 34.6088 | Q16: 9.613555556 | R16: 9156.197755 | S16: 38.337 | T16: 10.64916667 | AC16: 0
A17: 7 | O17: 8265.775018 | P17: 34.6088 | Q17: 9.613555556 | R17: 9156.197755 | S17: 38.337 | T17: 10.64916667 | AC17: 0
A18: 8 | O18: 8265.775018 | P18: 34.6088 | Q18: 9.613555556 | R18: 9156.197755 | S18: 38.337 | T18: 10.64916667 | AC18: 0
A19: 9 | O19: 8265.775018 | P19: 34.6088 | Q19: 9.613555556 | R19: 9156.197755 | S19: 38.337 | T19: 10.64916667 | AC19: 0
A20: 10 | O20: 8265.775018 | P20: 34.6088 | Q20: 9.613555556 | R20: 9156.197755 | S20: 38.337 | T20: 10.64916667 | AC20: 0
A21: 11 | O21: 8265.775018 | P21: 34.6088 | Q21: 9.613555556 | R21: 9156.197755 | S21: 38.337 | T21: 10.64916667 | AC21: 0
A22: 12 | B22: 90.9151 | C22: 4.4433 | D22: 1.072 | E22: 0.1244 | F22: 0.1901 | G22: 0.0039 | H22: 0.0554 | I22: 0.0447 | J22: 0.0723 | K22: 0.014 | L22: 2.1296 | M22: 0.9351 | N22: 0.7386 | O22: 8256.162341 | P22: 34.5669 | Q22: 9.601916667 | R22: 9145.696126 | S22: 38.2912 | T22: 10.63644444 | U22: 11678.71985 | V22: 48.8988 | W22: 13.58235004 | AC22: 99.9999
A23: 13 | O23: 8257.162341 | P23: 34.567 | Q23: 9.601944444 | R23: 9145.696126 | S23: 38.2913 | T23: 10.63647222 | AC23: 0
A24: 14 | O24: 8258.162341 | P24: 34.5671 | Q24: 9.601972222 | R24: 9145.696126 | S24: 38.2914 | T24: 10.6365 | AC24: 0
A25: 15 | O25: 8259.162341 | P25: 34.5672 | Q25: 9.602 | R25: 9145.696126 | S25: 38.2915 | T25: 10.63652778 | Z25: <0,006 | AA25: <0,02 | AB25: від. | AC25: 0
A26: 16 | O26: 8260.162341 | P26: 34.5673 | Q26: 9.602027778 | R26: 9145.696126 | S26: 38.2916 | T26: 10.63655556 | AC26: 0
A27: 17 | B27: 90.981 | C27: 4.4119 | D27: 1.0721 | E27: 0.1249 | F27: 0.192 | G27: 0.0039 | H27: 0.0566 | I27: 0.0456 | J27: 0.0711 | K27: 0.009 | L27: 2.0982 | M27: 0.9337 | N27: 0.7382 | O27: 8257.762608 | P27: 34.5736 | Q27: 9.603777778 | R27: 9147.53524 | S27: 38.2989 | T27: 10.63858333 | U27: 11683.73537 | V27: 48.9198 | W27: 13.5881831 | X27: -6.8 | Y27: -3.7 | AC27: 100 | AD27: ОК
A28: 18 | O28: 8258.762608 | P28: 34.5737 | Q28: 9.603805556 | R28: 9147.53524 | S28: 38.299 | T28: 10.63861111 | AC28: 0
A29: 19 | O29: 8259.762608 | P29: 34.5738 | Q29: 9.603833333 | R29: 9147.53524 | S29: 38.2991 | T29: 10.63863889 | AC29: 0
A30: 20 | O30: 8260.762608 | P30: 34.5739 | Q30: 9.603861111 | R30: 9147.53524 | S30: 38.2992 | T30: 10.63866667 | AC30: 0 | AD30: =IF(AC30=100,"ОК"," ") -> 
A31: 21 | O31: 8261.762608 | P31: 34.574 | Q31: 9.603888889 | R31: 9147.53524 | S31: 38.2993 | T31: 10.63869444 | AC31: 0
A32: 22 | B32: 90.9284 | C32: 4.4336 | D32: 1.0922 | E32: 0.1272 | F32: 0.195 | G32: 0.0039 | H32: 0.0561 | I32: 0.0452 | J32: 0.0721 | K32: 0.0073 | L32: 2.0861 | M32: 0.953 | N32: 0.7389 | O32: 8262.276796 | P32: 34.5925 | Q32: 9.609027778 | R32: 9152.359927 | S32: 38.3191 | T32: 10.64419444 | U32: 11684.97731 | V32: 48.925 | W32: 13.58962747 | AC32: 100.0001
A33: 23 | O33: 8263.276796 | P33: 34.5926 | Q33: 9.609055556 | R33: 9152.359927 | S33: 38.3192 | T33: 10.64422222 | AC33: 0 | AD33: =IF(AC33=100,"ОК"," ") -> 
A34: 24 | O34: 8264.276796 | P34: 34.5927 | Q34: 9.609083333 | R34: 9152.359927 | S34: 38.3193 | T34: 10.64425 | AC34: 0
A35: 25 | O35: 8265.276796 | P35: 34.5928 | Q35: 9.609111111 | R35: 9152.359927 | S35: 38.3194 | T35: 10.64427778 | AC35: 0
A36: 26 | O36: 8266.276796 | P36: 34.5929 | Q36: 9.609138889 | R36: 9152.359927 | S36: 38.3195 | T36: 10.64430556 | AC36: 0
A37: 27 | O37: 8267.276796 | P37: 34.593 | Q37: 9.609166667 | R37: 9152.359927 | S37: 38.3196 | T37: 10.64433333 | AC37: 0
A38: 28 | O38: 8268.276796 | P38: 34.5931 | Q38: 9.609194444 | R38: 9152.359927 | S38: 38.3197 | T38: 10.64436111 | AC38: 0
A39: 29 | B39: 90.9347 | C39: 4.4068 | D39: 1.1045 | E39: 0.1299 | F39: 0.2017 | G39: 0.004 | H39: 0.059 | I39: 0.0481 | J39: 0.0816 | K39: 0.0161 | L39: 2.0707 | M39: 0.9429 | N39: 0.7393 | O39: 8269.58548 | P39: 34.6231 | Q39: 9.617527778 | R39: 9160.241841 | S39: 38.3521 | T39: 10.65336111 | U39: 11691.61691 | V39: 48.9528 | W39: 13.59734932 | X39: 2.8 | Y39: 5.6 | AC39: 100
A40: 30 | O40: 8270.58548 | P40: 34.6232 | Q40: 9.617555556 | R40: 9160.241841 | S40: 38.3522 | T40: 10.65338889 | AC40: 0
A41: 31 | O41: 8271.58548 | P41: 34.6233 | Q41: 9.617583333 | R41: 9160.241841 | S41: 38.3523 | T41: 10.65341667 | AC41: 0
A42: Рівень одоризації відповідає чинним нормативним документам | O42: =SUMPRODUCT(O11:O41,' розрахунок'!E7:E37)/' розрахунок'!E38 -> 8262.342085 | P42: =SUMPRODUCT(P11:P41,' розрахунок'!E7:E37)/' розрахунок'!E38 -> 34.58765731 | Q42: =SUMPRODUCT(Q11:Q41,' розрахунок'!E7:E37)/' розрахунок'!E38 -> 9.607682586 | R42: =SUMPRODUCT(R11:R41,' розрахунок'!E7:E37)/' розрахунок'!E38 -> 9150.958429 | S42: =SUMPRODUCT(S11:S41,' розрахунок'!E7:E37)/' розрахунок'!E38 -> 38.3139238 | T42: =SUMPRODUCT(T11:T41,' розрахунок'!E7:E37)/' розрахунок'!E38 -> 10.64275661
H43: Середньозважене значення теплоти згоряння:
B46: Заступник начальника Диканського ЛВУМГ 31.05.2017р. | L46: Герасименко І.М. | Z46: =TODAY() -> 2017-06-01
B48: Завідувач лабораторії Диканського ЛВУМГ | L48: Горшковоз О.В. | Z48: =TODAY() -> 2017-06-01
B50: Начальник служби ГВМ та М Диканського ЛВУМГ | L50: Левадний С.А. | Z50: =TODAY() -> 2017-06-01

Sheet розрахунок
A2: Додаток до Паспорту фізико-хімічних показників природного газу по маршруту №92
A4: Число місяця | B4: Теплота згоряння вища, МДж/м3 | C4: Полтавська область | E4: Загальний обсяг газу, м3
C5: Обсяг газу переданого за добу, м3
C6: ГРС Орданівка | D6: ГРС Пришиб
A7: 1 | B7: =паспорт!S11 -> 38.337 | C7: 1038.07 | D7: 370.66 | E7: =SUM(C7:D7) -> 1408.73
A8: 2 | B8: =паспорт!S12 -> 38.337 | C8: 1060.48 | D8: 366.92 | E8: 1427.4
A9: 3 | B9: =паспорт!S13 -> 38.337 | C9: 945.11 | D9: 307.15 | E9: 1252.26
A10: 4 | B10: =паспорт!S14 -> 38.337 | C10: 1027.94 | D10: 320.34 | E10: 1348.28
A11: 5 | B11: =паспорт!S15 -> 38.337 | C11: 1061.73 | D11: 319.69 | E11: 1381.42
A12: 6 | B12: =паспорт!S16 -> 38.337 | C12: 1123.66 | D12: 351.73 | E12: 1475.39
A13: 7 | B13: =паспорт!S17 -> 38.337 | C13: 1057.96 | D13: 307.56 | E13: 1365.52
A14: 8 | B14: =паспорт!S18 -> 38.337 | C14: 1110.29 | D14: 359.36 | E14: 1469.65
A15: 9 | B15: =паспорт!S19 -> 38.337 | C15: 1204.83 | D15: 433.4 | E15: 1638.23
A16: 10 | B16: =паспорт!S20 -> 38.337 | C16: 2078.25 | D16: 718.26 | E16: 2796.51
A17: 11 | B17: =паспорт!S21 -> 38.337 | C17: 2221.02 | D17: 798.12 | E17: 3019.14
A18: 12 | B18: =паспорт!S22 -> 38.2912 | C18: 3180.72 | D18: 1180.41 | E18: 4361.13
A19: 13 | B19: =паспорт!S23 -> 38.2913 | C19: 3404.33 | D19: 1244.19 | E19: 4648.52
A20: 14 | B20: =паспорт!S24 -> 38.2914 | C20: 3060.98 | D20: 1048.69 | E20: 4109.67
A21: 15 | B21: =паспорт!S25 -> 38.2915 | C21: 1792.04 | D21: 526.42 | E21: 2318.46
A22: 16 | B22: =паспорт!S26 -> 38.2916 | C22: 1219.4 | D22: 403.62 | E22: 1623.02
A23: 17 | B23: =паспорт!S27 -> 38.2989 | C23: 1370.09 | D23: 524.41 | E23: 1894.5
A24: 18 | B24: =паспорт!S28 -> 38.299 | C24: 1952.91 | D24: 654.9 | E24: 2607.81
A25: 19 | B25: =паспорт!S29 -> 38.2991 | C25: 2493.06 | D25: 873.5 | E25: 3366.56
A26: 20 | B26: =паспорт!S30 -> 38.2992 | C26: 2413.92 | D26: 816.47 | E26: 3230.39
A27: 21 | B27: =паспорт!S31 -> 38.2993 | C27: 2046.49 | D27: 649.67 | E27: 2696.16
A28: 22 | B28: =паспорт!S32 -> 38.3191 | C28: 1333.56 | D28: 432.79 | E28: 1766.35
A29: 23 | B29: =паспорт!S33 -> 38.3192 | C29: 1075.16 | D29: 353.42 | E29: 1428.58
A30: 24 | B30: =паспорт!S34 -> 38.3193 | C30: 907.12 | D30: 299.59 | E30: 1206.71
A31: 25 | B31: =паспорт!S35 -> 38.3194 | C31: 824.21 | D31: 306.26 | E31: 1130.47
A32: 26 | B32: =паспорт!S36 -> 38.3195 | C32: 804.45 | D32: 173.46 | E32: 977.91
A33: 27 | B33: =паспорт!S37 -> 38.3196 | C33: 913.06 | D33: 336.7 | E33: 1249.76
A34: 28 | B34: =паспорт!S38 -> 38.3197 | C34: 1021.21 | D34: 305.85 | E34: =SUM(C34:D34) -> 1327.06
A35: 29 | B35: =паспорт!S39 -> 38.3521 | C35: 758.94 | D35: 190.68 | E35: 949.62
A36: 30 | B36: =паспорт!S40 -> 38.3522 | C36: 787.99 | D36: 185.53 | E36: 973.52
A37: 31 | B37: =паспорт!S41 -> 38.3523 | C37: 754.96 | D37: 220.44 | E37: =SUM(C37:D37) -> 975.4
A38: Загальний обсяг газу, м3 | C38: =SUM(C7:C37) -> 46043.94 | D38: =SUM(D7:D37) -> 15380.19 | E38: =SUM(E7:E37) -> 61424.13
A39: Енергія, МДж | C39: =SUMPRODUCT(B7:B37,C7:C37) -> 1764133.282 | D39: =SUMPRODUCT(B7:B37,D7:D37) -> 589266.154 | E39: =SUMPRODUCT(B7:B37,E7:E37) -> 2353399.436
A40: Теплота згоряння (середньозважене значення за місяць), МДж/м³ | C40: =C39/C38 -> 38.31412521 | D40: 38.31332084 | E40: 38.3139238
A41: Теплота згоряння (середньозважене значення за місяць), ккал/м³ | C41: =C40*238.8459 -> 9151.171719 | D41: 9150.979598 | E41: 9151.123613
A42: Теплота згоряння (середньозважене значення за місяць), кВт*год./м³ | C42: =C40/3.6 -> 10.64281256 | D42: 10.64258912 | E42: 10.64275661

Sheet додаток
A2: Додаток до Паспорту фізико-хімічних показників природного газу № | E2: 92
A4: Область | B4: ГРС, прямий споживач | C4: Cередньозважене значення вищої теплоти згоряння
C5: МДж/м³ | D5: ккал/м³ | E5: кВт*год./м³
A6: Полтавська область | B6: ГРС Орданівка | C6: =' розрахунок'!C40 -> 38.31412521 | D6: =' розрахунок'!C41 -> 9151.171719 | E6: =' розрахунок'!C42 -> 10.64281256
B7: ГРС Пришиб | C7: =' розрахунок'!D40 -> 38.31332084 | D7: =' розрахунок'!D41 -> 9150.979598 | E7: =' розрахунок'!D42 -> 10.64258912
A8: Середньозважене значення вищої теплоти згоряння по маршруту №92 | C8: =' розрахунок'!E40 -> 38.3139238 | D8: =' розрахунок'!E41 -> 9151.123613 | E8: =' розрахунок'!E42 -> 10.64275661
A12: Заступник начальника Диканського ЛВУМГ | C12: Герасименко І.М. | E12: =TODAY() -> 2017-06-01
A14: Завідувач вимірювальної хіміко-аналітичної лабораторії лабораторії | C14: Горшковоз О.В. | E14: =TODAY() -> 2017-06-01
A16: Начальник службиГВ та М | C16: Левадний С.А. | E16: =TODAY() -> 2017-06-01

Sheet variablesList (hidden)
A1: 3 | B1: x:\gaysin | C1: 10, 11, 24, 25, 127, 128, 132, 180, 207, 215 | D1: x:\
B2: x:\Illinci
B3: x:\Talne
